bitfinex/quotes_SOLUSD_20220210
["timestamp","ask_amount","ask_price","bid_price","bid_amount"]
[1644469194916,13.4322,111.75,111.66,18.46]
[1644469195114,42.11307597,111.74,111.68,13.4325]
[1644469196115,55.54577597,111.74,111.68,13.4325]
[1644469199522,55.54577597,111.74,111.68,25.8925]
[1644469199523,42.11307597,111.74,111.68,25.8925]
[1644469199723,42.11307597,111.74,111.68,26.1425]
[1644469200524,42.11307597,111.74,111.68,25.8925]
[1644469201326,42.11307597,111.74,111.67,13.4339]
[1644469202828,55.54547597,111.74,111.67,13.4339]
[1644469204233,79.61757597,111.74,111.67,13.4339]
[1644469204632,79.61757597,111.74,111.67,25.8939]
[1644469204928,79.61757597,111.74,111.66,13.4348]
[1644469205330,80.89487737,111.74,111.66,13.4348]
[1644469205829,79.61757597,111.74,111.66,13.4348]
[1644469206029,80.89487737,111.74,111.66,13.4348]
[1644469209128,38.8875949,111.69,111.66,13.4348]
[1644469209534,6.06219997,111.68,111.66,13.4348]
[1644469210231,47.8009748,111.67,111.66,13.4348]
[1644469212533,47.8009748,111.67,111.65,13.4365]
[1644469212734,6.06219997,111.66,111.65,13.4365]
[1644469213935,47.8009748,111.67,111.65,13.4365]
[1644469214335,45.06903353,111.66,111.65,13.4365]
[1644469214738,90.13806706,111.66,111.65,13.4365]
[1644469216338,93.17026703,111.66,111.65,13.4365]
[1644469217438,96.20026703,111.66,111.65,13.4365]
[1644469219642,96.20026703,111.66,111.61,12.46]
[1644469219643,5.21,111.65,111.61,12.46]
[1644469219845,96.20026703,111.66,111.57,2.55589088]
[1644469220042,23.4265,111.65,111.56,22.9688]
[1644469220245,45.06903353,111.62,111.56,22.9688]
[1644469220444,45.06903353,111.61,111.55,12.46]
[1644469220643,44.95395436,111.6,111.55,12.46]
[1644469221244,44.95395436,111.6,111.53,36.4585]
[1644469221643,44.95395436,111.6,111.54,12.46]
[1644469222848,44.95395436,111.6,111.54,25.9063]
[1644469224349,44.95395436,111.6,111.54,26.1563]
[1644469224954,44.95395436,111.6,111.55,50.69030048]
[1644469225553,45.06903353,111.58,111.55,50.69030048]
[1644469225774,90.13806706,111.58,111.55,50.69030048]
[1644469227172,90.13806706,111.58,111.55,13.445]
[1644469227372,90.13806706,111.58,111.54,26.1569]
[1644469228076,90.13806706,111.58,111.54,72.50483999]
[1644469228676,90.13806706,111.58,111.56,13.443]
[1644469228875,90.13806706,111.58,111.57,12.46]
[1644469230078,93.17026703,111.58,111.57,12.46]
[1644469230476,90.13806706,111.58,111.57,12.46]
[1644469230877,90.13806706,111.58,111.54,0.25]
[1644469231081,84.37157302,111.58,111.56,13.4446]
[1644469231281,36.8703,111.65,111.56,13.6946]
[1644469231577,90.13806706,111.57,111.56,37.9729]
[1644469231781,59.80216591,111.57,111.56,37.9729]
[1644469231979,59.80216591,111.57,111.56,52.23081448]
[1644469232178,59.80216591,111.57,111.56,250.67353759]
[1644469232378,59.80216591,111.57,111.56,226.39523759]
[1644469232583,46.0822014,111.7,111.56,226.39523759]
[1644469232584,1.2773014,111.7,111.56,226.39523759]
[1644469232777,23.4151,111.69,111.57,30.089]
[1644469232978,23.4151,111.69,111.6,13.4378]
[1644469233180,23.4151,111.69,111.61,12.46]
[1644469233585,45.78010122,111.68,111.61,12.71]
[1644469233785,45.78010122,111.68,111.61,12.46]
[1644469233990,59.22030122,111.68,111.61,12.46]
[1644469234185,61.47150352,111.68,111.59,24.089]
[1644469234385,24.3312,111.67,111.57,37.0063]
[1644469234788,41.8476275,111.66,111.57,37.0063]
[1644469235189,48.77188946,111.64,111.57,37.2563]
[1644469235387,48.77188946,111.64,111.58,13.4423]
[1644469235588,48.77188946,111.64,111.58,13.4663]
[1644469235989,48.77188946,111.64,111.58,0.024]
[1644469236991,48.77188946,111.64,111.53,91.31770535]
[1644469237193,24.6197,111.63,111.54,24.8505]
[1644469237793,39.9906573,111.62,111.54,24.8505]
[1644469237991,53.4378573,111.62,111.54,38.2977]
[1644469238191,53.4378573,111.62,111.54,38.5477]
[1644469238391,37.70537898,111.6,111.54,38.5477]
[1644469242797,37.70537898,111.6,111.54,38.2977]
[1644469250714,35.20537898,111.6,111.54,38.2977]
[1644469252624,35.20537898,111.6,111.54,38.3217]
[1644469253023,35.20537898,111.6,111.54,24.8745]
[1644469253223,48.65427898,111.6,111.54,0.024]
[1644469264941,49.93158038,111.6,111.54,0.024]
[1644469265544,48.65427898,111.6,111.54,0.024]
[1644469265744,49.93158038,111.6,111.54,0.024]
[1644469270677,49.93158038,111.6,111.53,0.024]
[1644469270851,13.4525,111.57,111.52,0.024]
[1644469271352,43.2852926,111.56,111.52,0.024]
[1644469271551,43.2852926,111.56,111.51,13.4521]
[1644469271750,43.2852926,111.56,111.51,13.4761]
[1644469277361,56.7384926,111.56,111.51,0.024]
[1644469277559,56.7384926,111.56,111.5,36.1869]
[1644469277758,56.7384926,111.56,111.51,0.024]
[1644469277959,56.7384926,111.56,111.5,36.1869]
[1644469279460,56.7384926,111.56,111.5,22.7337]
[1644469279760,56.7384926,111.56,111.5,0.024]
[1644469279963,22.9577,111.55,111.48,0.024]
[1644469280165,13.4566,111.53,111.48,0.024]
[1644469280363,13.4566,111.53,111.47,24.75020535]
[1644469280562,38.18638162,111.52,111.47,24.75020535]
[1644469280962,38.18638162,111.52,111.47,2.06740535]
[1644469281764,38.18638162,111.52,111.47,13.4803]
[1644469282569,38.18638162,111.52,111.47,13.7303]
[1644469282765,38.18638162,111.52,111.47,13.4803]
[1644469285174,51.64438162,111.52,111.47,0.024]
[1644469290497,38.18638162,111.52,111.47,13.4815]
[1644469293197,51.64448162,111.52,111.47,13.4815]
[1644469294298,51.64448162,111.52,111.47,0.024]
[1644469294498,23.5436,111.51,111.46,13.4583]
[1644469294699,23.5436,111.51,111.46,13.4823]
[1644469295501,42.31448163,111.5,111.46,13.4823]
[1644469297701,23.5436,111.51,111.46,13.4823]
[1644469297900,13.457,111.53,111.46,25.9423]
[1644469298103,22.5843,111.54,111.47,24.7957]
[1644469298300,22.5843,111.54,111.48,13.4799]
[1644469298702,48.51108081,111.53,111.48,0.024]
[1644469298902,48.51108081,111.53,111.47,24.7957]
[1644469299704,61.96828081,111.53,111.47,38.2529]
[1644469302407,48.51108081,111.53,111.47,65.24573836]
[1644469302609,48.51108081,111.53,111.47,77.95573836]
[1644469303007,48.51108081,111.53,111.48,1.79340535]
[1644469303211,48.51108081,111.53,111.49,13.453]
[1644469303607,48.51108081,111.53,111.49,13.703]
[1644469303807,48.51108081,111.53,111.49,13.453]
[1644469304708,48.51108081,111.53,111.49,13.703]
[1644469304912,48.51108081,111.53,111.49,13.453]
[1644469306310,48.51108081,111.53,111.48,0.024]
[1644469306516,48.51108081,111.53,111.47,0.024]
[1644469306711,23.6721,111.52,111.44,26.25732552]
[1644469306911,23.6721,111.52,111.46,0.004]
[1644469307117,43.3452517,111.51,111.42,1.26952552]
[1644469307311,44.6225531,111.51,111.42,24.9638]
[1644469307511,46.92784131,111.48,111.42,38.4267]
[1644469307912,46.92784131,111.48,111.42,68.32955736]
[1644469308314,46.92784131,111.48,111.42,38.4267]
[1644469308517,46.92784131,111.48,111.42,38.6767]
[1644469308713,46.92784131,111.48,111.42,38.4267]
[1644469309213,46.92784131,111.48,111.42,38.6767]
[1644469309414,46.92784131,111.48,111.42,38.4267]
[1644469309918,46.92784131,111.48,111.42,38.6767]
[1644469311018,46.92784131,111.48,111.42,38.4267]
[1644469312519,46.92784131,111.48,111.42,38.6767]
[1644469312716,46.92784131,111.48,111.42,38.4267]
[1644469314716,60.39104131,111.48,111.42,38.4267]
[1644469317019,60.39104131,111.48,111.4,12.46]
[1644469317222,13.4657,111.46,111.41,6.0]
[1644469317419,13.4657,111.46,111.37,1.26952552]
[1644469317620,13.4657,111.46,111.36,37.88022552]
[1644469317821,42.34396,111.45,111.36,36.6107]
[1644469318224,46.26447224,111.43,111.36,87.41634215]
[1644469318819,46.26447224,111.43,111.37,6.0]
[1644469319019,46.26447224,111.43,111.37,18.46]
[1644469319221,46.26447224,111.43,111.37,31.9266]
[1644469319440,46.26447224,111.43,111.37,18.46]
[1644469320021,46.26447224,111.43,111.37,18.71]
[1644469320221,46.26447224,111.43,111.37,32.1776]
[1644469322021,46.26447224,111.43,111.37,59.56701073]
[1644469322220,23.0378,111.44,111.37,59.56701073]
[1644469322221,23.0478,111.46,111.37,59.56701073]
[1644469322423,23.3794,111.5,111.41,13.463]
[1644469322625,24.4473,111.49,111.42,12.46]
[1644469323027,24.4473,111.49,111.42,12.734]
[1644469323228,36.42953797,111.47,111.42,12.734]
[1644469323425,36.42953797,111.47,111.42,12.71]
[1644469323827,36.42953797,111.47,111.42,26.1713]
[1644469325424,24.4473,111.49,111.42,26.1713]
[1644469325626,48.3939,111.51,111.42,26.1953]
[1644469326329,46.1409014,111.55,111.43,6.0]
[1644469326527,45.02491775,111.49,111.44,25.9176]
[1644469326726,45.02491775,111.49,111.44,26.1676]
[1644469327149,40.2305723,111.47,111.44,12.46]
[1644469327349,40.2305723,111.47,111.43,0.024]
[1644469327650,1.2773014,111.53,111.42,25.9458]
[1644469327850,47.9970014,111.54,111.42,26.1958]
[1644469328049,13.4609,111.51,111.42,26.1958]
[1644469328250,1.2773014,111.53,111.42,26.1958]
[1644469328651,39.63128599,111.47,111.42,64.04652764]
[1644469328852,39.63128599,111.47,111.42,25.9218]
[1644469330151,39.63128599,111.47,111.42,26.1718]
[1644469330352,39.63128599,111.47,111.42,25.9218]
[1644469330553,39.63128599,111.47,111.41,13.487]
[1644469330753,39.63128599,111.47,111.41,13.737]
[1644469330952,39.63128599,111.47,111.42,30.76126946]
[1644469331154,13.4633,111.49,111.42,31.01126946]
[1644469331358,13.4633,111.49,111.43,0.024]
[1644469332154,51.01547374,111.49,111.43,0.024]
[1644469332855,37.55217374,111.49,111.43,0.024]
[1644469333960,37.55217374,111.49,111.43,13.4847]
[1644469334157,37.55217374,111.49,111.44,44.76311292]
[1644469335659,37.55217374,111.49,111.43,13.7347]
[1644469336059,22.9203,111.5,111.43,13.7347]
[1644469336260,1.2773014,111.53,111.43,26.1947]
[1644469336469,24.1976014,111.53,111.43,26.1947]
[1644469336662,22.9203,111.53,111.44,6.0]
[1644469336872,22.9203,111.53,111.46,13.4553]
[1644469337162,36.76739665,111.52,111.46,71.91701699]
[1644469337362,36.76739665,111.52,111.46,72.16701699]
[1644469337561,22.9203,111.53,111.46,72.16701699]
[1644469337763,23.9271014,111.54,111.46,72.16701699]
[1644469337962,22.6498,111.54,111.46,72.16701699]
[1644469338661,46.54631081,111.53,111.46,72.16701699]
[1644469339163,46.54631081,111.53,111.47,6.0]
[1644469339362,46.54631081,111.53,111.48,13.4537]
[1644469339765,46.54631081,111.53,111.48,13.7037]
[1644469340566,46.54631081,111.53,111.48,43.22636539]
[1644469340767,46.54631081,111.53,111.48,13.4537]
[1644469340968,46.54631081,111.53,111.47,13.4559]
[1644469341272,46.54631081,111.53,111.45,0.024]
[1644469341466,69.56581081,111.53,111.46,0.25]
[1644469342567,69.56581081,111.53,111.45,41.00318721]
[1644469342868,69.56581081,111.53,111.46,13.4571]
[1644469343265,69.56581081,111.53,111.46,13.7071]
[1644469343466,69.56581081,111.53,111.46,13.4571]
[1644469343665,69.56581081,111.53,111.46,13.7071]
[1644469344570,69.56581081,111.53,111.47,34.79519517]
[1644469344768,69.56581081,111.53,111.47,48.25129517]
[1644469346570,69.56581081,111.53,111.47,48.50129517]
[1644469347475,69.56581081,111.53,111.47,13.7061]
[1644469349575,69.56581081,111.53,111.47,46.36811451]
[1644469350977,69.56581081,111.53,111.47,13.7061]
[1644469354003,69.56581081,111.53,111.47,13.4561]
[1644469354404,69.56581081,111.53,111.45,0.024]
[1644469354606,70.84311221,111.53,111.45,0.024]
[1644469354804,70.84311221,111.53,111.45,6.024]
[1644469355003,70.84311221,111.53,111.45,0.024]
[1644469355408,70.84311221,111.53,111.44,0.024]
[1644469355803,1.2773014,111.52,111.45,13.4585]
[1644469356004,37.41896796,111.51,111.44,0.024]
[1644469356504,37.41896796,111.51,111.44,34.99835126]
[1644469356706,37.41896796,111.51,111.45,0.024]
[1644469356905,37.41896796,111.51,111.46,13.4571]
[1644469358409,37.41896796,111.51,111.45,13.4826]
[1644469358610,37.41896796,111.51,111.44,0.024]
[1644469358811,24.3739,111.5,111.44,0.024]
[1644469359010,24.3739,111.5,111.41,0.024]
[1644469359509,55.2220647,111.49,111.42,13.4619]
[1644469359709,55.2220647,111.49,111.43,0.024]
[1644469363310,41.7599647,111.49,111.43,0.024]
[1644469363516,24.3739,111.5,111.44,39.99218182]
[1644469363709,24.3739,111.5,111.44,52.70218182]
[1644469364511,61.09814304,111.5,111.45,13.4585]
[1644469364710,61.09814304,111.5,111.45,13.7085]
[1644469364910,61.09814304,111.5,111.45,13.4585]
[1644469365511,24.3739,111.5,111.45,13.4585]
[1644469365710,1.2773014,111.52,111.45,13.7085]
[1644469366312,24.1638,111.53,111.45,13.7085]
[1644469366511,38.0995505,111.52,111.46,35.53220056]
[1644469366712,38.0995505,111.52,111.47,13.4567]
[1644469367815,25.44083739,111.53,111.48,39.99218182]
[1644469368013,25.44083739,111.53,111.48,53.44808182]
[1644469368214,24.1638,111.53,111.48,53.69808182]
[1644469368823,64.86462909,111.53,111.48,53.69808182]
[1644469369816,24.1638,111.53,111.48,53.69808182]
[1644469370617,24.1638,111.53,111.48,53.44808182]
[1644469371018,24.1638,111.53,111.48,13.4559]
[1644469372318,24.1638,111.53,111.49,32.36145499]
[1644469372520,24.1638,111.53,111.49,45.81545499]
[1644469372720,24.1638,111.53,111.49,13.454]
[1644469379829,24.1638,111.53,111.5,38.11712858]
[1644469380033,3.03219997,111.52,111.5,51.57092858]
[1644469380229,1.27703739,111.55,111.5,51.57092858]
[1644469380633,1.27703739,111.56,111.5,51.82092858]
[1644469380831,1.27703739,111.57,111.5,51.82092858]
[1644469381231,45.77089016,111.57,111.5,51.82092858]
[1644469383836,24.25673739,111.58,111.5,51.82092858]
[1644469384039,1.27703739,111.59,111.5,64.28092858]
[1644469384239,23.96643739,111.6,111.53,13.4464]
[1644469384438,1.27703739,111.6,111.53,25.9064]
[1644469384639,1.31247285,111.61,111.54,6.0]
[1644469384838,1.31247285,111.62,111.54,6.0]
[1644469385039,0.03543546,111.61,111.55,37.4072538]
[1644469385242,45.01466327,111.62,111.56,6.0]
[1644469385439,0.03543546,111.61,111.57,51.56042858]
[1644469385638,44.97922781,111.62,111.57,51.56042858]
[1644469385639,45.01466327,111.62,111.57,51.56042858]
[1644469385843,1.31247285,111.62,111.57,51.81042858]
[1644469386243,0.03543546,111.62,111.57,51.81042858]
[1644469386446,0.03543546,111.62,111.59,13.4405]
[1644469386746,0.03543546,111.64,111.59,13.6905]
[1644469386958,1.31247285,111.65,111.6,37.4072538]
[1644469387158,0.03543546,111.65,111.6,43.4072538]
[1644469387453,0.03543546,111.65,111.6,43.6572538]
[1644469388057,0.03543546,111.65,111.6,37.6572538]
[1644469388858,0.03543546,111.65,111.61,13.438]
[1644469390156,0.03543546,111.65,111.62,38.11712858]
[1644469390356,22.9537,111.66,111.62,51.55612858]
[1644469390566,1.31247285,111.68,111.62,51.80612858]
[1644469390757,0.03543546,111.67,111.62,51.80612858]
[1644469390961,1.31247285,111.69,111.62,51.80612858]
[1644469391160,1.31247285,111.69,111.62,13.689]
[1644469392157,45.84753448,111.68,111.63,43.52846488]
[1644469392357,45.84753448,111.68,111.63,56.96656488]
[1644469392658,45.84753448,111.68,111.63,13.4381]
[1644469398072,45.84753448,111.68,111.63,46.48591515]
[1644469398267,45.84753448,111.68,111.63,13.4381]
[1644469401172,45.84753448,111.68,111.63,13.6881]
[1644469402170,45.84753448,111.68,111.63,13.4381]
[1644469402370,45.84753448,111.68,111.59,12.46]
[1644469402570,24.90413546,111.67,111.6,0.25]
[1644469402771,0.03543546,111.66,111.6,0.25]
[1644469403871,0.03543546,111.66,111.59,49.74269635]
[1644469404772,0.03543546,111.66,111.61,13.4405]
[1644469404974,38.34513546,111.67,111.61,13.4405]
[1644469405272,0.03543546,111.66,111.61,13.4405]
[1644469405473,38.34513546,111.67,111.61,13.4405]
[1644469406574,24.90413546,111.67,111.61,13.4405]
[1644469406774,26.18117285,111.67,111.61,13.4405]
[1644469406976,26.18117285,111.67,111.61,13.6905]
[1644469407174,24.90413546,111.67,111.61,13.6905]
[1644469407776,26.18117285,111.67,111.61,13.6905]
[1644469409379,1.27703739,111.66,111.61,13.6905]
[1644469409588,1.31247285,111.66,111.61,13.6905]
[1644469410179,1.31247285,111.66,111.62,6.0]
[1644469410380,1.27703739,111.66,111.63,45.46978603]
[1644469410581,1.27703739,111.67,111.63,45.46978603]
[1644469410789,1.27703739,111.67,111.64,6.0]
[1644469410990,47.12457187,111.68,111.64,6.0]
[1644469411781,47.12457187,111.68,111.65,13.4356]
[1644469412282,47.12457187,111.68,111.66,6.0]
[1644469412482,47.12457187,111.68,111.63,32.03168603]
[1644469412781,1.27703739,111.67,111.63,32.03168603]
[1644469412983,1.27703739,111.67,111.64,13.4372]
[1644469413381,1.27703739,111.66,111.64,13.4372]
[1644469414082,1.27703739,111.67,111.64,13.4372]
[1644469414685,4.30703739,111.66,111.64,13.4372]
[1644469414886,4.30703739,111.66,111.63,13.4383]
[1644469415085,1.27703739,111.65,111.63,13.4383]
[1644469415687,1.27703739,111.66,111.63,13.4383]
[1644469416086,1.27703739,111.66,111.63,13.6883]
[1644469416289,1.27703739,111.66,111.63,13.4383]
[1644469419089,6.06219997,111.65,111.63,13.4383]
[1644469419289,6.06219997,111.65,111.62,13.4399]
[1644469419493,1.27703739,111.64,111.6,24.7006]
[1644469419692,1.27703739,111.64,111.61,6.0]
[1644469419889,1.27703739,111.64,111.6,0.25]
[1644469420189,37.3726387,111.63,111.6,0.25]
[1644469420388,6.06219997,111.62,111.6,0.25]
[1644469420787,6.06219997,111.62,111.57,43.67076682]
[1644469421788,6.06219997,111.62,111.6,13.4419]
[1644469422192,6.06219997,111.62,111.6,13.6919]
[1644469422690,6.06219997,111.62,111.6,13.4419]
[1644469422892,6.06219997,111.62,111.55,65.87674316]
[1644469423091,29.95663543,111.62,111.53,35.5064]
[1644469423292,1.27703739,111.61,111.53,37.29531897]
[1644469423890,1.27703739,111.61,111.53,78.06914764]
[1644469424094,1.27703739,111.61,111.55,13.4469]
[1644469425092,13.4475,111.61,111.55,13.4469]
[1644469425594,25.17147285,111.62,111.55,13.6969]
[1644469429918,38.61797285,111.62,111.55,13.6969]
[1644469430720,38.61797285,111.62,111.55,13.4469]
[1644469430919,1.27703739,111.61,111.55,13.4469]
[1644469431118,14.72493739,111.61,111.55,13.4469]
[1644469435121,14.72493739,111.61,111.54,13.449]
[1644469435324,14.72493739,111.61,111.5,44.8333]
[1644469435522,24.87623739,111.6,111.47,47.9801]
[1644469435722,13.4524,111.58,111.47,53.9801]
[1644469435927,24.293,111.57,111.47,79.77166138]
[1644469436227,36.69419538,111.56,111.48,50.4914424]
[1644469436729,36.69419538,111.56,111.51,13.4514]
[1644469437127,36.69419538,111.56,111.51,13.7014]
[1644469437329,24.293,111.57,111.51,13.7014]
[1644469438432,45.64092878,111.56,111.51,13.7014]
[1644469444339,45.64092878,111.56,111.51,13.4514]
[1644469444537,45.64092878,111.56,111.49,24.9956]
[1644469444538,45.64092878,111.56,111.5,13.4533]
[1644469444938,45.64092878,111.56,111.47,23.7123]
[1644469445137,24.9985,111.55,111.47,23.7123]
[1644469445739,24.9985,111.55,111.47,23.9623]
[1644469445939,38.4535,111.55,111.49,13.4546]
[1644469446138,38.4535,111.55,111.47,23.7123]
[1644469447740,38.4535,111.55,111.48,13.4558]
[1644469448140,38.4535,111.55,111.45,71.02845197]
[1644469448340,38.4535,111.55,111.45,71.27845197]
[1644469448540,38.4535,111.55,111.45,71.02845197]
[1644469449340,38.4535,111.55,111.47,13.457]
[1644469449551,39.73053739,111.55,111.47,13.457]
[1644469450952,38.4535,111.55,111.47,13.457]
[1644469451751,39.73053739,111.55,111.47,13.457]
[1644469454471,38.4535,111.55,111.47,13.457]
[1644469455179,38.4535,111.55,111.47,13.707]
[1644469455771,38.4535,111.55,111.47,13.457]
[1644469455975,39.73053739,111.55,111.47,13.457]
[1644469457574,38.4535,111.55,111.47,13.457]
[1644469459973,39.73053739,111.55,111.47,13.457]
[1644469464984,1.27703739,111.54,111.47,13.457]
[1644469465185,14.73393739,111.54,111.47,13.457]
[1644469469494,1.27703739,111.53,111.47,13.457]
[1644469469694,37.63374676,111.52,111.47,13.457]
[1644469476105,38.91078415,111.52,111.47,13.457]
[1644469476303,37.63374676,111.52,111.47,13.457]
[1644469477002,38.91078415,111.52,111.47,13.457]
[1644469477704,37.63374676,111.52,111.47,13.457]
[1644469477903,38.91078415,111.52,111.47,13.457]
[1644469485107,38.91078415,111.52,111.47,43.27764279]
[1644469485911,38.91078415,111.52,111.47,13.457]
[1644469488742,1.27703739,111.52,111.48,6.0]
[1644469489136,1.27703739,111.52,111.49,13.4518]
[1644469489335,1.27703739,111.54,111.49,13.4518]
[1644469489536,1.27703739,111.55,111.49,13.7018]
[1644469489737,43.94399535,111.54,111.49,13.7018]
[1644469490137,45.22103274,111.54,111.49,13.7018]
[1644469490337,43.94399535,111.54,111.49,13.7018]
[1644469491138,43.94399535,111.54,111.49,52.40780521]
[1644469493742,43.94399535,111.54,111.49,13.7018]
[1644469494248,25.34153739,111.56,111.49,13.7018]
[1644469494442,1.27703739,111.56,111.5,7.78445197]
[1644469494644,1.27703739,111.56,111.51,25.9087]
[1644469494842,0.03538384,111.61,111.51,48.5495]
[1644469494843,1.27703739,111.58,111.51,48.5495]
[1644469495042,1.27703739,111.58,111.52,6.0]
[1644469495243,35.38022659,111.57,111.52,6.25]
[1644469495846,35.38022659,111.57,111.53,13.4479]
[1644469496246,35.38022659,111.57,111.53,13.6979]
[1644469496444,1.27703739,111.59,111.53,13.6979]
[1644469496645,1.27703739,111.59,111.54,6.0]
[1644469496843,1.27703739,111.61,111.54,29.3996]
[1644469497046,1.27703739,111.61,111.54,29.6496]
[1644469497246,1.27703739,111.61,111.55,13.445]
[1644469497448,45.43223539,111.6,111.55,13.445]
[1644469497651,45.43223539,111.6,111.55,13.695]
[1644469498452,45.43223539,111.6,111.55,13.445]
[1644469498750,46.70927278,111.6,111.54,36.8489]
[1644469498947,1.27703739,111.59,111.54,13.4493]
[1644469499147,46.70927278,111.6,111.54,13.4493]
[1644469499848,60.15827278,111.6,111.54,13.4493]
[1644469502451,60.15827278,111.6,111.53,13.4504]
[1644469502653,1.27703739,111.59,111.53,13.4504]
[1644469502851,13.4504,111.59,111.53,13.4504]
[1644469504752,14.72743739,111.59,111.53,13.4504]
[1644469505157,13.4504,111.59,111.53,13.4504]
[1644469505355,14.72743739,111.59,111.53,13.4504]
[1644469506160,13.4504,111.59,111.53,13.4504]
[1644469506860,14.72743739,111.59,111.53,13.4504]
[1644469507059,13.4504,111.59,111.53,13.4504]
[1644469509666,14.72743739,111.59,111.53,13.4504]
[1644469509867,13.4504,111.59,111.53,13.4504]
[1644469510065,14.72743739,111.59,111.53,13.4504]
[1644469516895,1.27703739,111.58,111.53,13.4504]
[1644469517293,14.72813739,111.58,111.52,13.4518]
[1644469517494,1.27703739,111.57,111.5,9.918]
[1644469517695,1.27703739,111.56,111.5,9.918]
[1644469518093,1.27703739,111.55,111.5,9.918]
[1644469518293,38.35428893,111.54,111.5,9.918]
[1644469518493,13.4572,111.53,111.5,9.918]
[1644469518699,6.06219997,111.52,111.5,9.918]
[1644469521297,19.52069997,111.52,111.46,13.4585]
[1644469521497,19.52069997,111.52,111.41,114.3]
[1644469521796,19.52069997,111.52,111.42,29.5331]
[1644469521797,24.0421,111.51,111.42,29.5331]
[1644469522198,40.26068195,111.5,111.42,67.96737038]
[1644469522605,40.26068195,111.5,111.44,13.4609]
[1644469527213,40.26068195,111.5,111.44,13.7109]
[1644469527614,40.26068195,111.5,111.44,13.4609]
[1644469529221,40.26068195,111.5,111.44,54.95049358]
[1644469529815,40.26068195,111.5,111.45,6.0]
[1644469530021,40.26068195,111.5,111.46,13.4566]
[1644469530218,40.26068195,111.5,111.46,13.7066]
[1644469530623,40.26068195,111.5,111.46,13.4566]
[1644469531728,40.26068195,111.5,111.43,12.46]
[1644469531921,40.26068195,111.5,111.42,23.5331]
[1644469532527,23.0816,111.49,111.42,23.5331]
[1644469532720,45.19850709,111.48,111.42,23.5331]
[1644469532921,45.19850709,111.48,111.43,13.4614]
[1644469533346,45.19850709,111.48,111.4,12.46]
[1644469533542,45.19850709,111.48,111.38,24.5658]
[1644469533743,45.19850709,111.48,111.39,6.0]
[1644469533943,45.19850709,111.48,111.39,52.94601415]
[1644469534342,47.70946426,111.46,111.39,66.41131415]
[1644469534543,47.70946426,111.46,111.39,19.4653]
[1644469534743,47.70946426,111.46,111.39,19.7153]
[1644469535346,47.70946426,111.46,111.39,19.4653]
[1644469535544,61.17576426,111.46,111.39,19.4653]
[1644469536543,47.70946426,111.46,111.39,19.4653]
[1644469536746,47.70946426,111.46,111.4,0.024]
[1644469538845,61.17586426,111.46,111.4,0.024]
[1644469553366,61.17586426,111.46,111.4,37.24894477]
[1644469553767,61.17586426,111.46,111.4,0.024]
[1644469555773,61.17586426,111.46,111.4,13.4891]
[1644469556169,61.17586426,111.46,111.4,13.7391]
[1644469558172,23.1915,111.47,111.41,47.69594181]
[1644469558374,23.1915,111.47,111.42,13.4615]
[1644469558773,23.1915,111.47,111.42,13.7115]
[1644469558972,46.058,111.49,111.42,13.7115]
[1644469559172,46.058,111.49,111.43,0.024]
[1644469559372,46.17466478,111.48,111.44,13.4603]
[1644469566996,22.5484,111.49,111.44,13.4603]
[1644469568077,68.53870516,111.49,111.44,13.4603]
[1644469571877,68.53870516,111.49,111.45,39.99974328]
[1644469572079,68.53870516,111.49,111.45,13.4602]
[1644469574984,68.53870516,111.49,111.44,13.4612]
[1644469575184,68.53870516,111.49,111.43,0.024]
[1644469575583,69.81574255,111.49,111.43,0.024]
[1644469576788,83.27764255,111.49,111.43,13.4863]
[1644469578688,83.27764255,111.49,111.43,13.4623]
[1644469579690,83.27764255,111.49,111.43,13.4863]
[1644469582111,83.27764255,111.49,111.43,13.4623]
[1644469582812,68.53870516,111.49,111.43,54.56488827]
[1644469583013,69.81574255,111.49,111.43,54.81488827]
[1644469584016,83.27724255,111.49,111.43,54.81488827]
[1644469584718,83.27724255,111.49,111.43,54.56488827]
[1644469587618,23.82543739,111.49,111.43,54.56488827]
[1644469587818,1.27703739,111.49,111.43,67.29888827]